bitfinex/quotes_BTCUSD_20260127
["timestamp","ask_amount","ask_price","bid_price","bid_amount"]
[1769496011664,0.03389431,88413.0,88401.0,0.15439199]
[1769496011868,0.12434177,88412.0,88401.0,0.15439199]
[1769496012019,0.11303109,88411.0,88401.0,0.15439199]
[1769496012199,0.11303109,88410.0,88401.0,0.15439199]
[1769496012401,0.03389431,88413.0,88401.0,0.15439199]
[1769496012604,0.12434151,88412.0,88401.0,0.15439199]
[1769496012804,0.11303083,88411.0,88401.0,0.15439199]
[1769496013624,0.11303083,88410.0,88401.0,0.15439199]
[1769496013850,0.11303083,88409.0,88401.0,0.15439199]
[1769496014050,0.01131068,88412.0,88401.0,0.15439199]
[1769496014229,0.1243415,88411.0,88401.0,0.15439199]
[1769496014436,0.12434163,88410.0,88401.0,0.15439199]
[1769496014793,0.1130307,88409.0,88401.0,0.15439199]
[1769496014996,0.0113108,88411.0,88401.0,0.15439199]
[1769496015199,0.11303039,88410.0,88401.0,0.15439199]
[1769496015417,0.11303039,88409.0,88401.0,0.15439199]
[1769496015629,0.01131068,88412.0,88401.0,0.15439199]
[1769496015810,0.11303039,88411.0,88401.0,0.15439199]
[1769496016012,0.11303039,88410.0,88401.0,0.15439199]
[1769496016203,0.11303039,88409.0,88401.0,0.15439199]
[1769496016450,0.03389431,88413.0,88401.0,0.15439199]
[1769496016451,0.02258376,88413.0,88401.0,0.15439199]
[1769496016691,0.11303055,88412.0,88401.0,0.15439199]
[1769496016890,0.11303055,88411.0,88401.0,0.15439199]
[1769496017098,0.11303055,88410.0,88401.0,0.15439199]
[1769496017297,0.11303055,88409.0,88401.0,0.15439199]
[1769496017530,0.01131068,88412.0,88401.0,0.15439199]
[1769496017730,0.11303035,88411.0,88401.0,0.15439199]
[1769496017892,0.11303035,88410.0,88401.0,0.15439199]
[1769496018129,0.11303035,88409.0,88401.0,0.15439199]
[1769496018306,0.0113108,88411.0,88401.0,0.15439199]
[1769496018649,0.11303064,88410.0,88401.0,0.15439199]
[1769496018790,0.11303064,88409.0,88401.0,0.15439199]
[1769496018999,0.01131068,88412.0,88401.0,0.15439199]
[1769496019194,0.20651343,88418.0,88401.0,0.17229889]
[1769496019399,0.01131055,88413.0,88401.0,0.17229889]
[1769496019672,0.11303127,88412.0,88401.0,0.17229889]
[1769496019794,0.01131055,88413.0,88401.0,0.17229889]
[1769496020002,0.11303103,88412.0,88401.0,0.17229889]
[1769496020208,0.01131055,88413.0,88401.0,0.17229889]
[1769496020448,0.11303134,88412.0,88401.0,0.15439199]
[1769496020630,0.01131055,88413.0,88401.0,0.15439199]
[1769496020856,0.11303139,88412.0,88401.0,0.15439199]
[1769496021080,0.01131017,88416.0,88401.0,0.15439199]
[1769496021303,0.12434182,88415.0,88401.0,0.15439199]
[1769496021521,0.12434195,88414.0,88401.0,0.15439199]
[1769496021735,0.11303153,88413.0,88401.0,0.15439199]
[1769496022172,0.11303153,88412.0,88401.0,0.15439199]
[1769496022464,0.01131017,88416.0,88401.0,0.15439199]
[1769496022638,0.11303236,88415.0,88401.0,0.15439199]
[1769496022875,0.11303236,88414.0,88401.0,0.15439199]
[1769496023232,0.0338938,88417.0,88401.0,0.15439199]
[1769496023233,0.11303236,88413.0,88401.0,0.15439199]
[1769496023441,0.11303236,88412.0,88401.0,0.15439199]
[1769496023637,0.0338938,88417.0,88401.0,0.15439199]
[1769496023941,0.1130341,88416.0,88401.0,0.15439199]
[1769496024143,0.1130341,88415.0,88401.0,0.15439199]
[1769496024403,0.1130341,88414.0,88401.0,0.15439199]
[1769496024690,0.1130341,88413.0,88401.0,0.15439199]
[1769496024892,0.1130341,88412.0,88401.0,0.15439199]
[1769496025062,0.01131017,88416.0,88401.0,0.15439199]
[1769496025263,0.11303873,88415.0,88401.0,0.15439199]
[1769496025469,0.01130991,88418.0,88401.0,0.17229889]
[1769496025823,0.01131017,88416.0,88401.0,0.19563667]
[1769496026236,0.01131004,88417.0,88401.0,0.19563667]
[1769496027218,0.01131017,88416.0,88401.0,0.19563667]
[1769496027470,0.01131004,88417.0,88403.0,0.1741438]
[1769496027802,0.012209,88421.0,88403.0,0.1741438]
[1769496028136,0.22615652,88435.0,88405.0,0.1741438]
[1769496028137,0.0678581,88420.0,88405.0,0.1741438]
[1769496028343,0.01130978,88419.0,88409.0,0.1741438]
[1769496028553,0.01130927,88423.0,88412.0,0.02333778]
[1769496028731,0.01130914,88424.0,88395.0,0.0001341]
[1769496028874,0.01130927,88423.0,88399.0,0.02333778]
[1769496029096,0.0113094,88422.0,88402.0,0.13559664]
[1769496029310,0.01131004,88417.0,88402.0,0.15893442]
[1769496029737,0.01130991,88418.0,88402.0,0.15893442]
[1769496030099,0.03589933,88421.0,88402.0,0.15893442]
[1769496030298,0.01130965,88420.0,88402.0,0.15893442]
[1769496030785,0.03589933,88421.0,88402.0,0.15893442]
[1769496031351,0.01130965,88420.0,88402.0,0.15893442]
[1769496031941,0.03589933,88421.0,88402.0,0.15893442]
[1769496032504,0.0183076,88420.0,88402.0,0.15893442]
[1769496033479,0.0183076,88420.0,88402.0,0.13559664]
[1769496033676,0.03589933,88421.0,88404.0,0.13559664]
[1769496034103,0.0245898,88421.0,88404.0,0.13559664]
[1769496034447,0.03589933,88421.0,88404.0,0.13559664]
[1769496034615,0.0245898,88421.0,88404.0,0.13559664]
[1769496035361,0.03589933,88421.0,88404.0,0.13559664]
[1769496035597,0.01130965,88420.0,88404.0,0.13559664]
[1769496035820,0.03589933,88421.0,88404.0,0.13559664]
[1769496036399,0.0245898,88421.0,88404.0,0.13559664]
[1769496038259,0.0245898,88421.0,88404.0,0.15893442]
[1769496040538,0.01830745,88420.0,88404.0,0.15893442]
[1769496041126,0.0245898,88421.0,88404.0,0.15893442]
[1769496041589,0.01130927,88423.0,88405.0,0.02333778]
[1769496041889,0.01130914,88424.0,88408.0,0.13559664]
[1769496042059,0.0001577,88426.0,88408.0,0.15893442]
[1769496042256,0.11287035,88424.0,88408.0,0.15893442]
[1769496042448,0.0001577,88426.0,88408.0,0.15893442]
[1769496042673,0.11287049,88425.0,88408.0,0.15893442]
[1769496042988,0.11287049,88424.0,88408.0,0.15893442]
[1769496043199,0.0001577,88426.0,88409.0,0.02333778]
[1769496043438,0.11287096,88425.0,88411.0,0.02333778]
[1769496043712,0.0001577,88426.0,88414.0,0.13559664]
[1769496044137,0.0001577,88426.0,88414.0,0.15893442]
[1769496046446,0.0001577,88426.0,88416.0,0.13559664]
[1769496047405,0.0001577,88426.0,88418.0,0.11235664]
[1769496048402,0.0001577,88426.0,88402.0,0.12894864]
[1769496048403,0.01130927,88423.0,88402.0,0.12894864]
[1769496048748,0.0113094,88422.0,88403.0,0.02333778]
[1769496049001,0.01130927,88423.0,88406.0,0.12894864]
[1769496049215,0.01130914,88424.0,88408.0,0.12894864]
[1769496049417,0.01130901,88425.0,88408.0,0.15228642]
[1769496052017,0.03605639,88426.0,88408.0,0.15228642]
[1769496052217,0.07584846,88426.0,88408.0,0.15228642]
[1769496053540,0.01130901,88425.0,88408.0,0.15228642]
[1769496054225,0.03605639,88426.0,88408.0,0.15228642]
[1769496054875,0.03605639,88426.0,88401.0,0.03396644]
[1769496054876,0.0247475,88426.0,88410.0,0.12894864]
[1769496055227,0.03605639,88426.0,88410.0,0.12894864]
[1769496055966,0.01130901,88425.0,88410.0,0.12894864]
[1769496056406,0.01130914,88424.0,88410.0,0.12894864]
[1769496056531,0.01130901,88425.0,88410.0,0.12894864]
[1769496058355,0.11300774,88424.0,88410.0,0.12894864]
[1769496058563,0.03605639,88426.0,88410.0,0.12894864]
[1769496058814,0.12431732,88425.0,88410.0,0.12894864]
[1769496059130,0.11300831,88424.0,88410.0,0.12894864]
[1769496059331,0.03605639,88426.0,88410.0,0.12894864]
[1769496059490,0.1130099,88425.0,88410.0,0.12894864]
[1769496059692,0.1130099,88424.0,88410.0,0.12894864]
[1769496059896,0.03605639,88426.0,88410.0,0.12894864]
[1769496060103,0.11301032,88425.0,88410.0,0.12894864]
[1769496060349,0.11301032,88424.0,88410.0,0.12894864]
[1769496060516,0.03605639,88426.0,88410.0,0.12894864]
[1769496060716,0.1130109,88425.0,88410.0,0.12894864]
[1769496061027,0.1130109,88424.0,88410.0,0.12894864]
[1769496061229,0.03605639,88426.0,88410.0,0.12894864]
[1769496061416,0.11301194,88425.0,88410.0,0.12894864]
[1769496061617,0.11301194,88424.0,88410.0,0.12894864]
[1769496061817,0.01130914,88424.0,88410.0,0.12894864]
[1769496062267,0.01130901,88425.0,88410.0,0.12894864]
[1769496062467,0.12432896,88424.0,88410.0,0.12894864]
[1769496062692,0.01130901,88425.0,88410.0,0.12894864]
[1769496062901,0.11302174,88424.0,88410.0,0.12894864]
[1769496063068,0.01130901,88425.0,88410.0,0.12894864]
[1769496063264,0.11302174,88424.0,88410.0,0.12894864]
[1769496063489,0.01130901,88425.0,88410.0,0.12894864]
[1769496063686,0.11302351,88424.0,88410.0,0.12894864]
[1769496063888,0.01130901,88425.0,88410.0,0.12894864]
[1769496064105,0.11302338,88424.0,88410.0,0.12894864]
[1769496064405,0.01130914,88424.0,88410.0,0.12894864]
[1769496064606,0.0113094,88422.0,88410.0,0.12894864]
[1769496064765,0.01130978,88419.0,88410.0,0.12894864]
[1769496064949,0.01130965,88420.0,88410.0,0.12894864]
[1769496065708,0.01130953,88421.0,88410.0,0.12894864]
[1769496065933,0.05654753,88422.0,88410.0,0.12894864]
[1769496066130,0.01130965,88420.0,88410.0,0.12894864]
[1769496066914,0.23478706,88426.0,88410.0,0.12894864]
[1769496066915,0.01130914,88424.0,88410.0,0.12894864]
[1769496067300,0.01130901,88425.0,88410.0,0.1519771]
[1769496067700,0.01130914,88424.0,88410.0,0.1519771]
[1769496068852,0.01130927,88423.0,88410.0,0.1519771]
[1769496069014,0.01130914,88424.0,88410.0,0.1519771]
[1769496072378,0.01130927,88423.0,88410.0,0.1519771]
[1769496072932,0.0113094,88422.0,88410.0,0.1519771]
[1769496073157,0.01696369,88421.0,88410.0,0.1519771]
[1769496074965,0.01130927,88423.0,88410.0,0.1519771]
[1769496075167,0.0113094,88422.0,88410.0,0.1519771]
[1769496075367,0.01130927,88423.0,88410.0,0.1519771]
[1769496075682,0.01130927,88423.0,88411.0,0.1519771]
[1769496078309,0.01130901,88425.0,88411.0,0.1519771]
[1769496078512,0.12442452,88424.0,88411.0,0.1519771]
[1769496078738,0.11311538,88423.0,88411.0,0.1519771]
[1769496078935,0.11311538,88422.0,88411.0,0.1519771]
[1769496079074,0.01130914,88424.0,88411.0,0.1519771]
[1769496079278,0.1131153,88423.0,88411.0,0.1519771]
[1769496079481,0.1131153,88422.0,88411.0,0.1519771]
[1769496079686,0.01130914,88424.0,88411.0,0.1519771]
[1769496079921,0.1131104,88423.0,88411.0,0.1519771]
[1769496080113,0.1131104,88422.0,88411.0,0.1519771]
[1769496080404,0.01130914,88424.0,88411.0,0.1519771]
[1769496080587,0.11310955,88423.0,88411.0,0.1519771]
[1769496080820,0.11310955,88422.0,88411.0,0.1519771]
[1769496081118,0.01130914,88424.0,88411.0,0.1519771]
[1769496081323,0.11310942,88423.0,88411.0,0.1519771]
[1769496081589,0.11310942,88422.0,88411.0,0.1519771]
[1769496081721,0.01130914,88424.0,88411.0,0.1519771]
[1769496081937,0.11310952,88423.0,88411.0,0.1519771]
[1769496082138,0.11310952,88422.0,88411.0,0.1519771]
[1769496082341,0.01130914,88424.0,88411.0,0.1519771]
[1769496082547,0.11310953,88423.0,88411.0,0.1519771]
[1769496082791,0.11310953,88422.0,88411.0,0.1519771]
[1769496082966,0.01130914,88424.0,88411.0,0.1519771]
[1769496083166,0.11310953,88423.0,88411.0,0.1519771]
[1769496083371,0.11310953,88422.0,88411.0,0.1519771]
[1769496083575,0.01130914,88424.0,88411.0,0.1519771]
[1769496083773,0.11310958,88423.0,88411.0,0.1519771]
[1769496084113,0.11310958,88422.0,88412.0,0.02368286]
[1769496084251,0.01130901,88425.0,88412.0,0.1526315]
[1769496084454,0.11311015,88424.0,88412.0,0.1526315]
[1769496084688,0.11311015,88423.0,88412.0,0.1526315]
[1769496084955,0.11311015,88422.0,88412.0,0.1526315]
[1769496085108,0.01130901,88425.0,88412.0,0.1526315]
[1769496085315,0.11311027,88424.0,88412.0,0.1526315]
[1769496085554,0.11311027,88423.0,88412.0,0.1526315]
[1769496085764,0.11311027,88422.0,88412.0,0.1526315]
[1769496085995,0.01130901,88425.0,88412.0,0.1526315]
[1769496086199,0.11311027,88424.0,88412.0,0.1526315]
[1769496086409,0.11311027,88423.0,88412.0,0.1526315]
[1769496086629,0.11311027,88422.0,88412.0,0.1526315]
[1769496086842,0.01130914,88424.0,88412.0,0.1526315]
[1769496087026,0.11311047,88423.0,88412.0,0.1526315]
[1769496087268,0.11311047,88422.0,88412.0,0.1526315]
[1769496087449,0.01130914,88424.0,88412.0,0.1526315]
[1769496087752,0.1131107,88423.0,88412.0,0.1526315]
[1769496087969,0.1131107,88422.0,88412.0,0.1526315]
[1769496088087,0.01130914,88424.0,88412.0,0.1526315]
[1769496088285,0.11311094,88423.0,88412.0,0.1526315]
[1769496088539,0.11311094,88422.0,88412.0,0.1526315]
[1769496088781,0.01130901,88425.0,88412.0,0.1526315]
[1769496088915,0.12442017,88424.0,88412.0,0.1526315]
[1769496089125,0.11311103,88423.0,88412.0,0.1526315]
[1769496089323,0.11311103,88422.0,88412.0,0.1526315]
[1769496089587,0.01130914,88424.0,88412.0,0.1526315]
[1769496089761,0.11311134,88423.0,88412.0,0.1526315]
[1769496089971,0.11311134,88422.0,88412.0,0.1526315]
[1769496090173,0.01130914,88424.0,88412.0,0.1526315]
[1769496090375,0.11311129,88423.0,88412.0,0.1526315]
[1769496090571,0.11311129,88422.0,88412.0,0.1526315]
[1769496090793,0.01130876,88427.0,88412.0,0.1526315]
[1769496090794,0.01130812,88432.0,88413.0,0.02368286]
[1769496091003,0.11311161,88428.0,88416.0,0.12894864]
[1769496091210,0.11311161,88428.0,88404.0,0.0001459]
[1769496091211,0.11311161,88427.0,88418.0,0.1526315]
[1769496091352,0.11311161,88426.0,88418.0,0.1526315]
[1769496091553,0.11311161,88425.0,88418.0,0.1526315]
[1769496091775,0.11311161,88424.0,88418.0,0.1526315]
[1769496091986,0.11311161,88423.0,88419.0,0.02368286]
[1769496092171,0.11311161,88422.0,88420.0,0.12894864]
[1769496092387,0.01130825,88431.0,88420.0,0.12894864]
[1769496092553,0.11311192,88430.0,88420.0,0.12894864]
[1769496092791,0.11311192,88429.0,88420.0,0.12894864]
[1769496093056,0.11311192,88428.0,88420.0,0.12894864]
[1769496093264,0.11311192,88427.0,88420.0,0.12894864]
[1769496093404,0.11311192,88426.0,88420.0,0.12894864]
[1769496093604,0.11311192,88425.0,88420.0,0.12894864]
[1769496093808,0.06785086,88430.0,88420.0,0.12894864]
[1769496093809,0.11311192,88424.0,88420.0,0.12894864]
[1769496094013,0.06785086,88430.0,88420.0,0.12894864]
[1769496094216,0.1131117,88429.0,88420.0,0.12894864]
[1769496094411,0.1131117,88428.0,88419.0,0.02368286]
[1769496094617,0.01130889,88426.0,88419.0,0.02368286]
[1769496094813,0.1131117,88425.0,88413.0,0.12894864]
[1769496095016,0.1131117,88424.0,88414.0,0.1526315]
[1769496095197,0.01130889,88426.0,88414.0,0.1526315]
[1769496095402,0.11311035,88425.0,88414.0,0.1526315]
[1769496095598,0.11311035,88424.0,88414.0,0.1526315]
[1769496095799,0.01130889,88426.0,88414.0,0.1526315]
[1769496096000,0.12441837,88425.0,88414.0,0.1526315]
[1769496096219,0.01130889,88426.0,88414.0,0.1526315]
[1769496096427,0.11310951,88425.0,88414.0,0.1526315]
[1769496098638,0.12441852,88425.0,88414.0,0.1526315]
[1769496098863,0.11310951,88424.0,88414.0,0.1526315]
[1769496099058,0.01130901,88425.0,88414.0,0.1526315]
[1769496099398,0.11310857,88424.0,88414.0,0.1526315]
[1769496099608,0.01130901,88425.0,88414.0,0.1526315]
[1769496099865,0.12441706,88424.0,88414.0,0.1526315]
[1769496099996,0.01130914,88424.0,88414.0,0.1526315]
[1769496100406,0.01130953,88421.0,88414.0,0.1526315]
[1769496100608,0.01130953,88421.0,88414.0,0.02368286]
[1769496101016,0.0113094,88422.0,88414.0,0.02368286]
[1769496101555,0.01130953,88421.0,88414.0,0.02368286]
[1769496101754,0.0113094,88422.0,88414.0,0.02368286]
[1769496101915,0.01130953,88421.0,88414.0,0.02368286]
[1769496102118,0.0113094,88422.0,88414.0,0.02368286]
[1769496102519,0.01130927,88423.0,88414.0,0.02368286]
[1769496103464,0.01130914,88424.0,88414.0,0.02368286]
[1769496103635,0.11310743,88423.0,88414.0,0.02368286]
[1769496103838,0.03619085,88423.0,88414.0,0.02368286]
[1769496104045,0.0113094,88422.0,88414.0,0.02368286]
[1769496104209,0.01130953,88421.0,88414.0,0.02368286]
[1769496104409,0.0113094,88422.0,88414.0,0.02368286]
[1769496104844,0.01130927,88423.0,88414.0,0.02368286]
[1769496105786,0.01130914,88424.0,88414.0,0.02368286]
[1769496105973,0.11310749,88423.0,88414.0,0.02368286]
[1769496106146,0.01130914,88424.0,88414.0,0.02368286]
[1769496106349,0.11310728,88423.0,88414.0,0.02368286]
[1769496106651,0.01130914,88424.0,88414.0,0.02368286]
[1769496106863,0.11310745,88423.0,88414.0,0.02368286]
[1769496107021,0.01130914,88424.0,88414.0,0.02368286]
[1769496107256,0.11310731,88423.0,88414.0,0.02368286]
[1769496107461,0.01130914,88424.0,88414.0,0.02368286]
[1769496107763,0.01130901,88425.0,88414.0,0.02368286]
[1769496107967,0.00646041,88431.0,88414.0,0.02368286]
[1769496108170,0.01130876,88427.0,88414.0,0.02368286]
[1769496108372,0.01130889,88426.0,88414.0,0.02368286]
[1769496108545,0.01130876,88427.0,88414.0,0.02368286]
[1769496108893,0.01130863,88428.0,88414.0,0.02368286]
[1769496109116,0.01130876,88427.0,88414.0,0.1526315]
[1769496109324,0.01130876,88427.0,88414.0,0.16789465]
[1769496110747,0.01130889,88426.0,88414.0,0.1526315]
[1769496111075,0.16965413,88432.0,88414.0,0.1526315]
[1769496111495,0.05654366,88428.0,88414.0,0.1526315]
[1769496112314,0.01130901,88425.0,88414.0,0.1526315]
[1769496113566,0.01130876,88427.0,88414.0,0.1526315]
[1769496113767,0.01130889,88426.0,88414.0,0.1526315]
[1769496114218,0.05654319,88428.0,88414.0,0.1526315]
[1769496115542,0.01130889,88426.0,88414.0,0.1526315]
[1769496118324,0.01130876,88427.0,88414.0,0.1526315]
[1769496118588,0.01130889,88426.0,88414.0,0.1526315]
[1769496120553,0.01130876,88427.0,88414.0,0.1526315]
[1769496121280,0.01130863,88428.0,88414.0,0.1526315]
[1769496122439,0.05654011,88433.0,88414.0,0.12894864]
[1769496122649,0.01130901,88425.0,88415.0,0.16036023]
[1769496123145,0.01130914,88424.0,88415.0,0.16036023]
[1769496123689,0.01130914,88424.0,88413.0,0.0001459]
[1769496123690,0.01130953,88421.0,88413.0,0.0001459]
[1769496123901,0.0113094,88422.0,88413.0,0.0001459]
[1769496124539,0.01130914,88424.0,88413.0,0.0001459]
[1769496124715,0.06785423,88425.0,88413.0,0.0001459]
[1769496124716,0.01130927,88423.0,88413.0,0.0001459]
[1769496124942,0.01130927,88423.0,88404.0,0.0001459]
[1769496124944,0.0113108,88411.0,88404.0,0.0001459]
[1769496125151,0.01131068,88412.0,88404.0,0.0001459]
[1769496125517,0.01131055,88413.0,88404.0,0.0001459]
[1769496126146,0.01131068,88412.0,88404.0,0.0001459]
[1769496126347,0.01131055,88413.0,88404.0,0.0001459]
[1769496126557,0.01131068,88412.0,88404.0,0.0001459]
[1769496126774,0.01131055,88413.0,88404.0,0.0001459]
[1769496127906,0.01131068,88412.0,88404.0,0.0001459]
[1769496128116,0.01131068,88412.0,88395.0,0.03411742]
[1769496128118,0.01131068,88412.0,88395.0,0.0001459]
[1769496128119,0.01131234,88399.0,88395.0,0.0001459]
[1769496128324,0.01131221,88400.0,88395.0,0.0001459]
[1769496128529,0.01131208,88401.0,88395.0,0.0001459]
[1769496128730,0.01131196,88402.0,88395.0,0.0001459]
[1769496128936,0.01131208,88401.0,88395.0,0.0001459]
[1769496129386,0.01131221,88400.0,88395.0,0.0001459]
[1769496129827,0.01131208,88401.0,88395.0,0.0001459]
[1769496130093,0.01131183,88403.0,88395.0,0.0001459]
[1769496130321,0.01131208,88401.0,88395.0,0.0001459]
[1769496131150,0.01131221,88400.0,88395.0,0.0001459]
[1769496131350,0.01131208,88401.0,88395.0,0.0001459]
[1769496132209,0.05773808,88403.0,88395.0,0.0001459]
[1769496132933,0.01131196,88402.0,88395.0,0.0001459]
[1769496133111,0.02592666,88401.0,88395.0,0.0001459]
[1769496135208,0.01131196,88402.0,88395.0,0.0001459]
[1769496135722,0.01131183,88403.0,88395.0,0.0001459]
[1769496136709,0.01131196,88402.0,88395.0,0.0001459]
[1769496138692,0.01131208,88401.0,88395.0,0.0001459]
[1769496138896,0.01131221,88400.0,88395.0,0.0001459]
[1769496139132,0.01131234,88399.0,88395.0,0.0001459]
[1769496139334,0.01131221,88400.0,88395.0,0.0001459]
[1769496139941,0.01131208,88401.0,88395.0,0.0001459]
[1769496141168,0.01131221,88400.0,88395.0,0.0001459]
[1769496141343,0.01131208,88401.0,88395.0,0.0001459]
[1769496143392,0.01131221,88400.0,88395.0,0.0001459]
[1769496143947,0.02262417,88402.0,88395.0,0.0001459]
[1769496145395,0.06678448,88402.0,88395.0,0.0001459]
[1769496148126,0.01131208,88401.0,88395.0,0.0001459]
[1769496148601,0.05547252,88402.0,88395.0,0.0001459]
[1769496148815,0.01131221,88402.0,88395.0,0.0001459]
[1769496149232,0.01131106,88409.0,88395.0,0.0001459]
[1769496149411,0.03397568,88402.0,88396.0,0.01524007]
[1769496149615,0.01131119,88408.0,88397.0,0.12289685]
[1769496149843,0.03397568,88406.0,88397.0,0.1460151]
[1769496151375,0.03397568,88406.0,88397.0,0.1227751]
[1769496152405,0.03397568,88406.0,88398.0,1e-08]
[1769496152611,0.03397568,88406.0,88397.0,0.1227751]
[1769496153230,0.01131119,88408.0,88397.0,0.1227751]
[1769496153470,0.045287,88407.0,88397.0,0.1227751]
[1769496153698,0.03397568,88407.0,88397.0,0.1227751]
[1769496155364,0.01131119,88408.0,88397.0,0.1227751]
[1769496155585,0.04528687,88408.0,88397.0,0.1227751]
[1769496157396,0.01131119,88408.0,88397.0,0.1227751]
[1769496158381,0.11308705,88407.0,88397.0,0.1227751]
[1769496158565,0.01131119,88408.0,88397.0,0.1227751]
[1769496158939,0.12439851,88407.0,88397.0,0.1227751]
[1769496159276,0.01131144,88406.0,88397.0,0.1227751]
[1769496159489,0.01131132,88407.0,88397.0,0.1227751]
[1769496159699,0.01131144,88406.0,88395.0,0.0001459]
[1769496159905,0.0113117,88404.0,88395.0,0.0001459]
[1769496160124,0.01131183,88403.0,88395.0,0.0001459]
[1769496161085,0.01131196,88402.0,88395.0,0.0001459]
[1769496161425,0.01131183,88403.0,88395.0,0.0001459]
[1769496161976,0.01131196,88402.0,88395.0,0.0001459]
[1769496163789,0.01131183,88403.0,88395.0,0.0001459]
[1769496164374,0.01131196,88402.0,88395.0,0.0001459]
[1769496164531,0.01131208,88401.0,88395.0,0.0001459]
[1769496165138,0.01131196,88402.0,88395.0,0.0001459]
[1769496166674,100.0,88614.0,88395.0,0.0001459]
[1769496166675,0.21725587,88408.0,88395.0,0.0001459]
[1769496166852,0.11304817,88407.0,88395.0,0.0001459]
[1769496167037,0.21725587,88408.0,88395.0,0.0001459]
[1769496167239,0.11304817,88407.0,88395.0,0.0001459]
[1769496167436,0.01131196,88402.0,88395.0,0.0001459]
[1769496167852,0.01131208,88401.0,88395.0,0.0001459]
[1769496168259,0.01131196,88402.0,88395.0,0.0001459]
[1769496169527,0.01131208,88401.0,88395.0,0.0001459]
[1769496170150,0.01131196,88402.0,88395.0,0.0001459]
[1769496170549,0.01131221,88400.0,88395.0,0.0001459]
[1769496170750,0.01131208,88401.0,88395.0,0.0001459]
[1769496171335,0.01131221,88400.0,88395.0,0.0001459]
[1769496171878,0.01131208,88401.0,88395.0,0.0001459]
[1769496172414,0.17509792,88408.0,88395.0,0.0001459]
[1769496172621,0.05655927,88403.0,88395.0,0.0001459]
[1769496172998,0.01131208,88401.0,88395.0,0.0001459]
[1769496173205,0.01131196,88402.0,88395.0,0.0001459]
[1769496175028,0.01131208,88401.0,88395.0,0.0001459]
[1769496175290,0.01131196,88402.0,88395.0,0.0001459]
[1769496175676,0.01131157,88405.0,88395.0,0.0001459]
[1769496178475,0.0113117,88404.0,88395.0,0.0001459]
[1769496178791,0.03969925,88404.0,88395.0,0.0001459]
[1769496179178,0.0113117,88404.0,88395.0,0.0001459]
[1769496179382,0.01131157,88405.0,88395.0,0.0001459]
[1769496180496,0.0113117,88404.0,88395.0,0.0001459]
[1769496180906,0.01131183,88403.0,88395.0,0.0001459]
[1769496182352,0.01131132,88407.0,88395.0,0.0001459]
[1769496182647,0.03397568,88410.0,88398.0,0.1094933]
[1769496182898,0.01131093,88410.0,88397.0,0.02380613]
[1769496183072,0.01131093,88410.0,88398.0,0.1327333]
[1769496183285,0.01131132,88407.0,88398.0,0.1327333]
[1769496183967,0.01131144,88406.0,88398.0,0.1327333]
[1769496184164,0.01131157,88405.0,88398.0,0.1327333]
[1769496184773,0.01131144,88406.0,88398.0,0.1327333]
[1769496185284,0.0113117,88404.0,88398.0,0.1327333]
[1769496185635,0.01131157,88405.0,88398.0,0.1327333]
[1769496187341,0.01131132,88407.0,88398.0,0.1327333]
[1769496187569,0.15863064,88412.0,88398.0,0.1327333]
[1769496187784,0.01131144,88406.0,88398.0,0.1327333]
[1769496187995,0.06786795,88407.0,88398.0,0.1327333]
[1769496188164,0.01131132,88407.0,88398.0,0.1327333]
[1769496189881,0.01131093,88410.0,88398.0,0.1327333]
[1769496190121,0.01131093,88410.0,88398.0,0.14840183]
[1769496190800,0.03474265,88411.0,88398.0,0.14840183]
[1769496191013,0.01131093,88410.0,88398.0,0.1327333]
[1769496192209,0.03474265,88411.0,88398.0,0.1327333]
[1769496192774,0.01131093,88410.0,88398.0,0.1327333]
[1769496193440,0.03474265,88411.0,88398.0,0.1327333]
[1769496195885,0.02343185,88411.0,88398.0,0.1327333]
[1769496196911,0.03474227,88414.0,88398.0,0.1327333]
[1769496197117,0.39306616,88420.0,88395.0,0.0001459]
[1769496197118,0.01130914,88424.0,88403.0,0.02380613]
[1769496197325,0.0113094,88422.0,88406.0,0.1327333]
[1769496197530,0.11294894,88421.0,88406.0,0.15653943]
[1769496197740,0.11294894,88420.0,88406.0,0.15653943]
[1769496197943,0.11294894,88419.0,88406.0,0.15653943]
[1769496198149,0.01130965,88420.0,88406.0,0.15653943]
[1769496198349,0.01130953,88421.0,88406.0,0.15653943]
[1769496198576,0.11292118,88420.0,88407.0,0.1327333]
[1769496198777,0.01130953,88421.0,88407.0,0.1327333]
[1769496198989,0.11292119,88420.0,88407.0,0.1327333]
[1769496199101,0.01130953,88421.0,88407.0,0.1327333]
[1769496199306,0.11290256,88420.0,88407.0,0.14995264]
[1769496199510,0.0113094,88422.0,88407.0,0.14995264]
[1769496199727,0.1129017,88421.0,88407.0,0.14995264]
[1769496199972,0.1129017,88420.0,88407.0,0.14995264]
[1769496200171,0.0113094,88422.0,88407.0,0.1327333]
[1769496200377,0.11288696,88421.0,88407.0,0.1327333]
[1769496200579,0.0113094,88422.0,88407.0,0.1327333]
[1769496200775,0.11288703,88421.0,88407.0,0.1327333]
[1769496200976,0.0113094,88422.0,88407.0,0.1327333]
[1769496201837,0.01130965,88420.0,88407.0,0.1327333]
[1769496202329,0.01130978,88419.0,88407.0,0.1327333]
[1769496202487,0.01130965,88420.0,88407.0,0.1327333]
[1769496203094,0.01130953,88421.0,88407.0,0.1327333]
[1769496203878,0.01130978,88419.0,88407.0,0.1327333]
[1769496204659,0.01130991,88418.0,88407.0,0.1327333]
[1769496205634,0.01130978,88419.0,88407.0,0.1327333]
[1769496206002,0.01131004,88417.0,88407.0,0.1327333]
[1769496206786,0.01131017,88416.0,88407.0,0.1327333]
[1769496207768,0.01131004,88417.0,88407.0,0.1327333]
[1769496207968,0.01131017,88416.0,88407.0,0.1327333]
[1769496208770,0.01131004,88417.0,88407.0,0.1327333]
[1769496209804,0.01130991,88418.0,88407.0,0.1327333]
[1769496211933,0.02310178,88419.0,88407.0,0.1327333]
[1769496212129,0.03441156,88419.0,88407.0,0.1327333]
[1769496213131,0.02310178,88419.0,88407.0,0.14817025]
[1769496213280,0.02310178,88419.0,88407.0,0.1327333]
[1769496220841,0.03441156,88419.0,88407.0,0.1327333]
[1769496221065,0.01131004,88417.0,88407.0,0.1327333]
[1769496221444,0.01130991,88418.0,88407.0,0.1327333]
[1769496222064,0.03441156,88419.0,88407.0,0.1327333]
[1769496222215,0.02542447,88418.0,88407.0,0.1327333]
[1769496225803,0.02542447,88418.0,88407.0,0.14817025]
[1769496226222,0.02542447,88418.0,88407.0,0.1327333]
[1769496241905,0.03673438,88418.0,88407.0,0.1327333]
[1769496242483,0.02542447,88418.0,88407.0,0.1327333]
[1769496244318,0.11298996,88417.0,88407.0,0.1327333]
[1769496244559,0.02542447,88418.0,88407.0,0.1327333]
[1769496244779,0.11298715,88417.0,88407.0,0.14817025]
[1769496244982,0.02542447,88418.0,88407.0,0.14817025]
[1769496250204,0.02542447,88418.0,88407.0,0.1327333]
[1769496250986,0.11298169,88417.0,88407.0,0.1327333]
[1769496251183,0.02542447,88418.0,88407.0,0.1327333]
[1769496251435,0.11298176,88417.0,88407.0,0.1327333]
[1769496251659,0.02542447,88418.0,88407.0,0.1327333]
[1769496251911,0.11298163,88417.0,88407.0,0.1327333]
[1769496252166,0.02542447,88418.0,88407.0,0.1327333]